[Event "Titled Tuesday Blitz July 25 Early 2023"]
[White "Luxama, Jacques Muller"]
[Black "Makkar, Rajat"]
[WhiteFideId "11900113"]
[BlackFideId "36016810"]
[WhiteElo "2218"]
[BlackElo "2528"]
[Result "1-0"]
[Round "8"]
[TimeControl "180+2"]
[Date "2023.07.25"]
[WhiteClock "0:02:39"]
[BlackClock "0:02:24"]
[Board "92"]

1. e4 {[%clk 0:02:59]}  c5 {[%clk 0:02:59]} 2. Nf3 {[%clk 0:02:59]}  Nc6 {[%clk 0:02:59]} 3. Bc4 {[%clk 0:02:56]}  e6 {[%clk 0:02:56]} 4. O-O {[%clk 0:02:56]}  Nf6 {[%clk 0:02:52]} 5. Re1 {[%clk 0:02:55]}  Be7 {[%clk 0:02:49]} 6. e5 {[%clk 0:02:52]}  Nd5 {[%clk 0:02:48]} 7. Bxd5 {[%clk 0:02:52]}  exd5 {[%clk 0:02:48]} 8. d4 {[%clk 0:02:52]}  cxd4 {[%clk 0:02:39]} 9. Nxd4 {[%clk 0:02:52]}  O-O {[%clk 0:02:40]} 10. Nc3 {[%clk 0:02:50]}  d6 {[%clk 0:02:39]} 11. exd6 {[%clk 0:02:47]}  Qxd6 {[%clk 0:02:35]} 12. Ndb5 {[%clk 0:02:46]}  Qg6 {[%clk 0:02:29]} 13. Nxd5 {[%clk 0:02:42]}  Bd6 {[%clk 0:02:28]} 14. Nxd6 {[%clk 0:02:40]}  Qxd6 {[%clk 0:02:24]} 15. Ne7+ {[%clk 0:02:39]} 1-0


[Site "https://www.chess.com"]

[Event "Titled Tuesday Blitz July 25 Early 2023"]
[White "Estrada Nieto, Julian"]
[Black "Skliarov, Viktor"]
[WhiteFideId "5101018"]
[BlackFideId "14106736"]
[WhiteElo "2459"]
[BlackElo "2662"]
[Result "1-0"]
[Round "8"]
[TimeControl "180+2"]
[Date "2023.07.25"]
[WhiteClock "0:00:29"]
[BlackClock "0:00:02"]
[Board "97"]

1. e4 {[%clk 0:03:00]}  c5 {[%clk 0:02:59]} 2. Nf3 {[%clk 0:03:00]}  Nc6 {[%clk 0:02:59]} 3. Bb5 {[%clk 0:03:00]}  e6 {[%clk 0:02:59]} 4. O-O {[%clk 0:02:59]}  Nge7 {[%clk 0:02:57]} 5. Re1 {[%clk 0:02:59]}  Nd4 {[%clk 0:02:57]} 6. Nxd4 {[%clk 0:02:58]}  cxd4 {[%clk 0:02:58]} 7. d3 {[%clk 0:02:56]}  a6 {[%clk 0:02:52]} 8. Ba4 {[%clk 0:02:57]}  b5 {[%clk 0:02:52]} 9. Bb3 {[%clk 0:02:57]}  Nc6 {[%clk 0:02:52]} 10. Nd2 {[%clk 0:02:57]}  Bc5 {[%clk 0:02:50]} 11. Nf3 {[%clk 0:02:56]}  O-O {[%clk 0:02:50]} 12. a4 {[%clk 0:02:52]}  Bb7 {[%clk 0:02:49]} 13. c3 {[%clk 0:02:36]}  f5 {[%clk 0:02:41]} 14. e5 {[%clk 0:02:25]}  Qe8 {[%clk 0:02:33]} 15. Bd2 {[%clk 0:01:59]}  h6 {[%clk 0:02:12]} 16. Rc1 {[%clk 0:01:54]}  Qe7 {[%clk 0:01:54]} 17. Qe2 {[%clk 0:01:41]}  Rac8 {[%clk 0:01:48]} 18. cxd4 {[%clk 0:01:37]}  Nxd4 {[%clk 0:01:46]} 19. Nxd4 {[%clk 0:01:37]}  Bxd4 {[%clk 0:01:47]} 20. axb5 {[%clk 0:01:37]}  axb5 {[%clk 0:01:44]} 21. Bc3 {[%clk 0:01:36]}  Qg5 {[%clk 0:01:30]} 22. Qf1 {[%clk 0:01:36]}  Bb6 {[%clk 0:01:11]} 23. d4 {[%clk 0:01:31]}  b4 {[%clk 0:01:08]} 24. Bxb4 {[%clk 0:01:29]}  Rxc1 {[%clk 0:01:07]} 25. Rxc1 {[%clk 0:01:26]}  Bxg2 {[%clk 0:01:07]} 26. h4 {[%clk 0:01:15]}  Bxf1+ {[%clk 0:00:34]} 27. hxg5 {[%clk 0:01:15]}  Rb8 {[%clk 0:00:34]} 28. Bd6 {[%clk 0:01:03]}  Ra8 {[%clk 0:00:34]} 29. Kxf1 {[%clk 0:01:03]}  Bxd4 {[%clk 0:00:34]} 30. gxh6 {[%clk 0:00:57]}  gxh6 {[%clk 0:00:26]} 31. Rc7 {[%clk 0:00:57]}  Ra1+ {[%clk 0:00:19]} 32. Kg2 {[%clk 0:00:57]}  Rb1 {[%clk 0:00:19]} 33. Rxd7 {[%clk 0:00:54]}  Rxb2 {[%clk 0:00:19]} 34. Bxe6+ {[%clk 0:00:54]}  Kh8 {[%clk 0:00:20]} 35. Rf7 {[%clk 0:00:42]}  Rxf2+ {[%clk 0:00:19]} 36. Kg3 {[%clk 0:00:41]}  f4+ {[%clk 0:00:12]} 37. Rxf4 {[%clk 0:00:38]}  Rxf4 {[%clk 0:00:11]} 38. Kxf4 {[%clk 0:00:38]}  Kg7 {[%clk 0:00:12]} 39. Bf5 {[%clk 0:00:36]}  h5 {[%clk 0:00:08]} 40. e6 {[%clk 0:00:31]}  Bf6 {[%clk 0:00:04]} 41. Be5 {[%clk 0:00:31]}  Bxe5+ {[%clk 0:00:04]} 42. Kxe5 {[%clk 0:00:31]}  Kf8 {[%clk 0:00:02]} 43. Kf6 {[%clk 0:00:29]} 1-0


[Site "https://www.chess.com"]

[Event "Titled Tuesday Blitz July 25 Early 2023"]
[White "Spaqi, Wilson"]
[Black "Yurovskykh, Oleksandr"]
[WhiteFideId "2053888"]
[BlackFideId "14134020"]
[WhiteElo "2447"]
[BlackElo "2556"]
[Result "0-1"]
[Round "8"]
[TimeControl "180+2"]
[Date "2023.07.25"]
[WhiteClock "0:01:09"]
[BlackClock "0:00:52"]
[Board "100"]

1. d4 {[%clk 0:02:55]}  g6 {[%clk 0:02:55]} 2. Bf4 {[%clk 0:02:56]}  Bg7 {[%clk 0:02:55]} 3. Nf3 {[%clk 0:02:55]}  d6 {[%clk 0:02:55]} 4. c3 {[%clk 0:02:54]}  Nd7 {[%clk 0:02:55]} 5. e3 {[%clk 0:02:54]}  e5 {[%clk 0:02:53]} 6. dxe5 {[%clk 0:02:53]}  dxe5 {[%clk 0:02:46]} 7. Bg5 {[%clk 0:02:54]}  f6 {[%clk 0:02:46]} 8. Bh4 {[%clk 0:02:53]}  Nh6 {[%clk 0:02:45]} 9. Bc4 {[%clk 0:02:52]}  Qe7 {[%clk 0:02:36]} 10. O-O {[%clk 0:02:48]}  Nf5 {[%clk 0:02:34]} 11. Bg3 {[%clk 0:02:45]}  Nb6 {[%clk 0:02:32]} 12. Bb3 {[%clk 0:02:44]}  Be6 {[%clk 0:02:32]} 13. Bxe6 {[%clk 0:02:41]}  Qxe6 {[%clk 0:02:33]} 14. Qb3 {[%clk 0:02:41]}  Kf7 {[%clk 0:02:21]} 15. Nbd2 {[%clk 0:02:39]}  Rhd8 {[%clk 0:02:20]} 16. Ne4 {[%clk 0:02:39]}  Qxb3 {[%clk 0:02:10]} 17. axb3 {[%clk 0:02:40]}  Bf8 {[%clk 0:02:11]} 18. Rfd1 {[%clk 0:02:37]}  a6 {[%clk 0:02:10]} 19. h3 {[%clk 0:02:34]}  Be7 {[%clk 0:01:56]} 20. Kf1 {[%clk 0:02:23]}  Ke6 {[%clk 0:01:56]} 21. Ke2 {[%clk 0:02:19]}  Ng7 {[%clk 0:01:35]} 22. Rxd8 {[%clk 0:02:13]}  Rxd8 {[%clk 0:01:35]} 23. Rd1 {[%clk 0:02:13]}  Rxd1 {[%clk 0:01:36]} 24. Kxd1 {[%clk 0:02:14]}  h6 {[%clk 0:01:36]} 25. Bh2 {[%clk 0:02:11]}  f5 {[%clk 0:01:32]} 26. Ned2 {[%clk 0:02:12]}  Bf6 {[%clk 0:01:24]} 27. Kc2 {[%clk 0:02:05]}  c5 {[%clk 0:01:21]} 28. Nc4 {[%clk 0:01:59]}  Nxc4 {[%clk 0:01:20]} 29. bxc4 {[%clk 0:02:00]}  e4 {[%clk 0:01:05]} 30. Ng1 {[%clk 0:01:56]}  Be5 {[%clk 0:01:06]} 31. Bxe5 {[%clk 0:01:56]}  Kxe5 {[%clk 0:01:07]} 32. Ne2 {[%clk 0:01:55]}  Ne6 {[%clk 0:01:07]} 33. h4 {[%clk 0:01:50]}  g5 {[%clk 0:01:05]} 34. hxg5 {[%clk 0:01:50]}  hxg5 {[%clk 0:01:06]} 35. g3 {[%clk 0:01:50]}  Nf8 {[%clk 0:01:02]} 36. b4 {[%clk 0:01:48]}  b6 {[%clk 0:00:59]} 37. bxc5 {[%clk 0:01:40]}  bxc5 {[%clk 0:01:00]} 38. Kb3 {[%clk 0:01:41]}  Nd7 {[%clk 0:01:00]} 39. Ka4 {[%clk 0:01:35]}  Nb6+ {[%clk 0:01:00]} 40. Ka5 {[%clk 0:01:35]}  Nxc4+ {[%clk 0:01:01]} 41. Kxa6 {[%clk 0:01:36]}  Nb2 {[%clk 0:00:55]} 42. Kb5 {[%clk 0:01:32]}  Nd3 {[%clk 0:00:53]} 43. Kc6 {[%clk 0:01:25]}  Nxf2 {[%clk 0:00:53]} 44. Kxc5 {[%clk 0:01:25]}  Nd1 {[%clk 0:00:54]} 45. c4 {[%clk 0:01:18]}  Nxe3 {[%clk 0:00:54]} 46. Kb5 {[%clk 0:01:18]}  f4 {[%clk 0:00:54]} 47. gxf4+ {[%clk 0:01:18]}  gxf4 {[%clk 0:00:55]} 48. c5 {[%clk 0:01:16]}  f3 {[%clk 0:00:55]} 49. Ng3 {[%clk 0:01:15]}  Nf5 {[%clk 0:00:50]} 50. Nxf5 {[%clk 0:01:12]}  Kxf5 {[%clk 0:00:51]} 51. c6 {[%clk 0:01:13]}  f2 {[%clk 0:00:51]} 52. c7 {[%clk 0:01:09]}  f1=Q+ {[%clk 0:00:52]} 0-1


[Site "https://www.chess.com"]

[Event "Titled Tuesday Blitz July 25 Early 2023"]
[White "Valgmae, Toomas"]
[Black "Galiot, Goran"]
[WhiteFideId "4502523"]
[BlackFideId "931560"]
[WhiteElo "2435"]
[BlackElo "2554"]
[Result "1-0"]
[Round "8"]
[TimeControl "180+2"]
[Date "2023.07.25"]
[WhiteClock "0:01:09"]
[BlackClock "0:00:29"]
[Board "102"]

1. d4 {[%clk 0:03:00]}  Nf6 {[%clk 0:02:59]} 2. c4 {[%clk 0:03:01]}  g6 {[%clk 0:03:00]} 3. Nc3 {[%clk 0:03:01]}  Bg7 {[%clk 0:03:00]} 4. e4 {[%clk 0:03:01]}  d6 {[%clk 0:03:01]} 5. f3 {[%clk 0:03:01]}  O-O {[%clk 0:03:01]} 6. Be3 {[%clk 0:03:01]}  Nfd7 {[%clk 0:03:01]} 7. Qd2 {[%clk 0:03:01]}  e5 {[%clk 0:03:01]} 8. Nge2 {[%clk 0:03:00]}  Nc6 {[%clk 0:03:01]} 9. O-O-O {[%clk 0:02:59]}  a5 {[%clk 0:02:55]} 10. Kb1 {[%clk 0:02:58]}  b6 {[%clk 0:02:44]} 11. h4 {[%clk 0:02:58]}  Ba6 {[%clk 0:02:31]} 12. h5 {[%clk 0:02:55]}  Bxc4 {[%clk 0:02:29]} 13. Bh6 {[%clk 0:02:54]}  Bxh6 {[%clk 0:02:16]} 14. Qxh6 {[%clk 0:02:53]}  g5 {[%clk 0:02:17]} 15. Ng3 {[%clk 0:02:46]}  Bxf1 {[%clk 0:02:14]} 16. Nf5 {[%clk 0:02:37]}  Qf6 {[%clk 0:02:13]} 17. Qxf6 {[%clk 0:02:35]}  Nxf6 {[%clk 0:02:13]} 18. Rhxf1 {[%clk 0:02:35]}  Nxd4 {[%clk 0:02:09]} 19. Nxd4 {[%clk 0:02:34]}  exd4 {[%clk 0:02:09]} 20. Rxd4 {[%clk 0:02:32]}  h6 {[%clk 0:01:59]} 21. g4 {[%clk 0:02:31]}  Rfe8 {[%clk 0:01:54]} 22. Rc1 {[%clk 0:02:24]}  Re5 {[%clk 0:01:46]} 23. a4 {[%clk 0:02:22]}  Rc5 {[%clk 0:01:38]} 24. Nb5 {[%clk 0:02:19]}  Rc8 {[%clk 0:01:26]} 25. Rxc5 {[%clk 0:02:13]}  bxc5 {[%clk 0:01:24]} 26. Rd3 {[%clk 0:02:10]}  Nd7 {[%clk 0:01:22]} 27. Kc2 {[%clk 0:02:05]}  Ne5 {[%clk 0:01:15]} 28. Re3 {[%clk 0:02:03]}  Kf8 {[%clk 0:01:14]} 29. Kc3 {[%clk 0:02:02]}  Ke7 {[%clk 0:01:13]} 30. b3 {[%clk 0:01:59]}  c6 {[%clk 0:01:14]} 31. Na3 {[%clk 0:01:59]}  Rb8 {[%clk 0:01:12]} 32. Nc4 {[%clk 0:01:48]}  Nxc4 {[%clk 0:01:06]} 33. Kxc4 {[%clk 0:01:49]}  Rb4+ {[%clk 0:01:05]} 34. Kc3 {[%clk 0:01:49]}  Ke6 {[%clk 0:01:04]} 35. Rd3 {[%clk 0:01:42]}  Ke5 {[%clk 0:01:01]} 36. Rd1 {[%clk 0:01:40]}  Rd4 {[%clk 0:01:01]} 37. Re1 {[%clk 0:01:24]}  f6 {[%clk 0:01:00]} 38. Rf1 {[%clk 0:01:13]}  Kf4 {[%clk 0:01:00]} 39. Rf2 {[%clk 0:01:13]}  Ke3 {[%clk 0:00:58]} 40. Rf1 {[%clk 0:01:14]}  Ke2 {[%clk 0:00:56]} 41. Rc1 {[%clk 0:01:10]}  Rxe4 {[%clk 0:00:29]} 42. fxe4 {[%clk 0:01:09]} 1-0


[Site "https://www.chess.com"]

[Event "Titled Tuesday Blitz July 25 Early 2023"]
[White "Hansch, Karsten"]
[Black "Balla, Tamas-Kristof"]
[WhiteFideId "24692239"]
[BlackFideId "1208497"]
[WhiteElo "2543"]
[BlackElo "2425"]
[Result "0-1"]
[Round "8"]
[TimeControl "180+2"]
[Date "2023.07.25"]
[WhiteClock "0:01:53"]
[BlackClock "0:01:29"]
[Board "104"]

1. e4 {[%clk 0:02:56]}  c5 {[%clk 0:02:59]} 2. Nf3 {[%clk 0:02:56]}  Nc6 {[%clk 0:02:59]} 3. d4 {[%clk 0:02:57]}  cxd4 {[%clk 0:02:59]} 4. Nxd4 {[%clk 0:02:58]}  e5 {[%clk 0:03:00]} 5. Nb5 {[%clk 0:02:55]}  d6 {[%clk 0:03:00]} 6. N1c3 {[%clk 0:02:52]}  a6 {[%clk 0:03:01]} 7. Na3 {[%clk 0:02:52]}  b5 {[%clk 0:03:01]} 8. Nd5 {[%clk 0:02:52]}  Nge7 {[%clk 0:03:01]} 9. Nxe7 {[%clk 0:02:50]}  Bxe7 {[%clk 0:02:54]} 10. c3 {[%clk 0:02:50]}  O-O {[%clk 0:02:53]} 11. Nc2 {[%clk 0:02:50]}  Kh8 {[%clk 0:02:46]} 12. Ne3 {[%clk 0:02:49]}  Bg5 {[%clk 0:02:33]} 13. Bd3 {[%clk 0:02:49]}  Be6 {[%clk 0:02:31]} 14. h4 {[%clk 0:02:47]}  Bh6 {[%clk 0:02:28]} 15. Nd5 {[%clk 0:02:25]}  Bxc1 {[%clk 0:02:27]} 16. Rxc1 {[%clk 0:02:26]}  Bxd5 {[%clk 0:02:03]} 17. exd5 {[%clk 0:02:26]}  Ne7 {[%clk 0:02:04]} 18. g4 {[%clk 0:02:21]}  f5 {[%clk 0:02:02]} 19. gxf5 {[%clk 0:02:21]}  Nxf5 {[%clk 0:02:01]} 20. Qg4 {[%clk 0:02:20]}  Nh6 {[%clk 0:01:47]} 21. Qg5 {[%clk 0:02:14]}  Qb6 {[%clk 0:01:40]} 22. Rh2 {[%clk 0:02:10]}  e4 {[%clk 0:01:36]} 23. Bxe4 {[%clk 0:02:04]}  Rae8 {[%clk 0:01:36]} 24. f3 {[%clk 0:02:04]}  Rxf3 {[%clk 0:01:36]} 25. Re2 {[%clk 0:01:53]}  Rxe4 {[%clk 0:01:29]} 0-1


[Site "https://www.chess.com"]

[Event "Titled Tuesday Blitz July 25 Early 2023"]
[White "Ginzburg, Yakov"]
[Black "Molina Carretero, Daniel"]
[WhiteFideId "4157176"]
[BlackFideId "32071914"]
[WhiteElo "2496"]
[BlackElo "2423"]
[Result "1-0"]
[Round "8"]
[TimeControl "180+2"]
[Date "2023.07.25"]
[WhiteClock "0:00:26"]
[BlackClock "0:00:03"]
[Board "107"]

1. e4 {[%clk 0:01:59]}  c5 {[%clk 0:02:59]} 2. Nf3 {[%clk 0:01:59]}  d6 {[%clk 0:02:59]} 3. c3 {[%clk 0:01:59]}  Nf6 {[%clk 0:02:59]} 4. Be2 {[%clk 0:02:00]}  g6 {[%clk 0:02:59]} 5. O-O {[%clk 0:02:00]}  Bg7 {[%clk 0:03:00]} 6. Re1 {[%clk 0:02:00]}  O-O {[%clk 0:03:00]} 7. Bf1 {[%clk 0:02:01]}  Bg4 {[%clk 0:02:52]} 8. d3 {[%clk 0:02:01]}  Nc6 {[%clk 0:02:52]} 9. Nbd2 {[%clk 0:02:01]}  Rb8 {[%clk 0:02:51]} 10. h3 {[%clk 0:02:01]}  Bxf3 {[%clk 0:02:51]} 11. Nxf3 {[%clk 0:02:02]}  Nd7 {[%clk 0:02:44]} 12. a3 {[%clk 0:02:01]}  b5 {[%clk 0:02:44]} 13. d4 {[%clk 0:02:00]}  a5 {[%clk 0:02:36]} 14. d5 {[%clk 0:01:59]}  Nce5 {[%clk 0:02:34]} 15. Nxe5 {[%clk 0:01:59]}  Nxe5 {[%clk 0:02:35]} 16. a4 {[%clk 0:01:54]}  b4 {[%clk 0:02:33]} 17. Bb5 {[%clk 0:01:51]}  bxc3 {[%clk 0:02:16]} 18. bxc3 {[%clk 0:01:51]}  f5 {[%clk 0:02:16]} 19. exf5 {[%clk 0:01:31]}  Rxf5 {[%clk 0:02:15]} 20. Qc2 {[%clk 0:01:20]}  c4 {[%clk 0:02:07]} 21. f4 {[%clk 0:01:11]}  Nd3 {[%clk 0:02:06]} 22. Re4 {[%clk 0:01:04]}  Nb4 {[%clk 0:01:53]} 23. Qe2 {[%clk 0:00:55]}  Nxd5 {[%clk 0:01:36]} 24. Bxc4 {[%clk 0:00:54]}  Kh8 {[%clk 0:01:35]} 25. Bxd5 {[%clk 0:00:52]}  Rxd5 {[%clk 0:01:36]} 26. Rxe7 {[%clk 0:00:51]}  Bxc3 {[%clk 0:01:22]} 27. Ra3 {[%clk 0:00:49]}  Bf6 {[%clk 0:01:14]} 28. Re6 {[%clk 0:00:46]}  Rc5 {[%clk 0:00:57]} 29. Be3 {[%clk 0:00:43]}  Rb1+ {[%clk 0:00:52]} 30. Kh2 {[%clk 0:00:43]}  Rc8 {[%clk 0:00:43]} 31. Rd3 {[%clk 0:00:41]}  Rb4 {[%clk 0:00:41]} 32. Rdxd6 {[%clk 0:00:39]}  Qg8 {[%clk 0:00:34]} 33. Rxf6 {[%clk 0:00:38]}  Rxa4 {[%clk 0:00:33]} 34. Bd4 {[%clk 0:00:36]}  Rxd4 {[%clk 0:00:26]} 35. Rxd4 {[%clk 0:00:35]}  Re8 {[%clk 0:00:23]} 36. Qb2 {[%clk 0:00:33]}  Qg7 {[%clk 0:00:22]} 37. Rd7 {[%clk 0:00:31]}  Rg8 {[%clk 0:00:03]} 38. Rff7 {[%clk 0:00:26]} 1-0


[Site "https://www.chess.com"]

[Event "Titled Tuesday Blitz July 25 Early 2023"]
[White "Iljin, Timofey"]
[Black "Shubenkova, Veronika"]
[WhiteFideId "14110180"]
[BlackFideId "44124040"]
[WhiteElo "2416"]
[BlackElo "2496"]
[Result "0-1"]
[Round "8"]
[TimeControl "180+2"]
[Date "2023.07.25"]
[WhiteClock "0:00:31"]
[BlackClock "0:02:15"]
[Board "108"]

1. e4 {[%clk 0:02:58]}  e6 {[%clk 0:02:59]} 2. d4 {[%clk 0:02:58]}  d5 {[%clk 0:02:59]} 3. Nd2 {[%clk 0:02:58]}  Nf6 {[%clk 0:02:59]} 4. Bd3 {[%clk 0:02:57]}  Be7 {[%clk 0:02:59]} 5. c3 {[%clk 0:02:57]}  c5 {[%clk 0:02:59]} 6. Ngf3 {[%clk 0:02:54]}  Nc6 {[%clk 0:02:59]} 7. O-O {[%clk 0:02:54]}  a6 {[%clk 0:02:59]} 8. e5 {[%clk 0:02:52]}  Nd7 {[%clk 0:02:58]} 9. Re1 {[%clk 0:02:52]}  b5 {[%clk 0:02:58]} 10. Nf1 {[%clk 0:02:51]}  Qb6 {[%clk 0:02:58]} 11. Be3 {[%clk 0:02:49]}  Bb7 {[%clk 0:02:58]} 12. Bc2 {[%clk 0:02:49]}  c4 {[%clk 0:02:58]} 13. a3 {[%clk 0:02:48]}  a5 {[%clk 0:02:58]} 14. N3d2 {[%clk 0:02:45]}  O-O-O {[%clk 0:02:56]} 15. b3 {[%clk 0:02:39]}  cxb3 {[%clk 0:02:53]} 16. Bxb3 {[%clk 0:02:39]}  a4 {[%clk 0:02:54]} 17. Bc2 {[%clk 0:02:39]}  Na5 {[%clk 0:02:54]} 18. Rb1 {[%clk 0:02:39]}  Qc6 {[%clk 0:02:52]} 19. Bd3 {[%clk 0:02:30]}  Ba6 {[%clk 0:02:50]} 20. Qe2 {[%clk 0:02:17]}  Nc4 {[%clk 0:02:48]} 21. Nxc4 {[%clk 0:02:09]}  dxc4 {[%clk 0:02:42]} 22. Bc2 {[%clk 0:02:09]}  Nb6 {[%clk 0:02:42]} 23. Nd2 {[%clk 0:01:59]}  Nd5 {[%clk 0:02:41]} 24. Ne4 {[%clk 0:01:55]}  Bxa3 {[%clk 0:02:39]} 25. Qg4 {[%clk 0:01:24]}  g6 {[%clk 0:02:37]} 26. Nf6 {[%clk 0:01:19]}  Nxc3 {[%clk 0:02:32]} 27. Ra1 {[%clk 0:01:20]}  Bb2 {[%clk 0:02:31]} 28. Bd2 {[%clk 0:01:09]}  h5 {[%clk 0:02:23]} 29. Qh4 {[%clk 0:01:06]}  Bb7 {[%clk 0:02:18]} 30. g3 {[%clk 0:00:31]}  Qg2# {[%clk 0:02:15]} 0-1


[Site "https://www.chess.com"]

[Event "Titled Tuesday Blitz July 25 Early 2023"]
[White "Fontaine, Quentin"]
[Black "Mejia, Cherry Ann"]
[WhiteFideId "230804"]
[BlackFideId "5206880"]
[WhiteElo "2494"]
[BlackElo "2404"]
[Result "1/2-1/2"]
[Round "8"]
[TimeControl "180+2"]
[Date "2023.07.25"]
[WhiteClock "0:00:14"]
[BlackClock "0:00:09"]
[Board "109"]

1. Nf3 {[%clk 0:02:36]}  d5 {[%clk 0:02:59]} 2. g3 {[%clk 0:02:36]}  Nf6 {[%clk 0:03:00]} 3. Bg2 {[%clk 0:02:36]}  b5 {[%clk 0:03:00]} 4. O-O {[%clk 0:02:36]}  Bb7 {[%clk 0:03:01]} 5. d3 {[%clk 0:02:36]}  c5 {[%clk 0:03:00]} 6. Nbd2 {[%clk 0:02:37]}  Nc6 {[%clk 0:02:56]} 7. e4 {[%clk 0:02:33]}  dxe4 {[%clk 0:02:51]} 8. dxe4 {[%clk 0:02:34]}  e5 {[%clk 0:02:51]} 9. a4 {[%clk 0:02:31]}  a6 {[%clk 0:02:50]} 10. c3 {[%clk 0:02:28]}  Be7 {[%clk 0:02:45]} 11. Qe2 {[%clk 0:02:28]}  c4 {[%clk 0:02:29]} 12. Nh4 {[%clk 0:02:04]}  O-O {[%clk 0:02:21]} 13. Nf5 {[%clk 0:02:02]}  Bc5 {[%clk 0:02:21]} 14. Nf3 {[%clk 0:01:55]}  Ne7 {[%clk 0:02:00]} 15. N3h4 {[%clk 0:01:26]}  Nxf5 {[%clk 0:01:45]} 16. Nxf5 {[%clk 0:01:25]}  Qb6 {[%clk 0:01:38]} 17. Kh1 {[%clk 0:01:14]}  Rad8 {[%clk 0:01:35]} 18. axb5 {[%clk 0:01:13]}  axb5 {[%clk 0:01:34]} 19. Bg5 {[%clk 0:01:10]}  h6 {[%clk 0:01:28]} 20. Bc1 {[%clk 0:01:03]}  Rfe8 {[%clk 0:01:09]} 21. h3 {[%clk 0:01:03]}  Nh7 {[%clk 0:01:05]} 22. Qg4 {[%clk 0:00:59]}  Qg6 {[%clk 0:01:03]} 23. Qxg6 {[%clk 0:00:56]}  fxg6 {[%clk 0:01:03]} 24. Ne3 {[%clk 0:00:50]}  Nf6 {[%clk 0:01:00]} 25. Ra5 {[%clk 0:00:42]}  Bc6 {[%clk 0:00:51]} 26. Nd5 {[%clk 0:00:33]}  Nxd5 {[%clk 0:00:27]} 27. exd5 {[%clk 0:00:33]}  Bxd5 {[%clk 0:00:27]} 28. Rxb5 {[%clk 0:00:31]}  Bxg2+ {[%clk 0:00:21]} 29. Kxg2 {[%clk 0:00:32]}  Be7 {[%clk 0:00:17]} 30. Rxe5 {[%clk 0:00:30]}  Bf6 {[%clk 0:00:13]} 31. Rxe8+ {[%clk 0:00:28]}  Rxe8 {[%clk 0:00:14]} 32. Rd1 {[%clk 0:00:28]}  Re2 {[%clk 0:00:11]} 33. Kf3 {[%clk 0:00:26]}  Rc2 {[%clk 0:00:11]} 34. h4 {[%clk 0:00:18]}  Kf7 {[%clk 0:00:11]} 35. Be3 {[%clk 0:00:14]}  Rxb2 {[%clk 0:00:10]} 36. Rd7+ {[%clk 0:00:15]}  Ke6 {[%clk 0:00:11]} 37. Rc7 {[%clk 0:00:16]}  Bxc3 {[%clk 0:00:10]} 38. Rxc4 {[%clk 0:00:16]}  Bf6 {[%clk 0:00:11]} 39. Rc6+ {[%clk 0:00:16]}  Kf7 {[%clk 0:00:11]} 40. Ke4 {[%clk 0:00:15]}  Rb4+ {[%clk 0:00:10]} 41. Kd5 {[%clk 0:00:15]}  Rb5+ {[%clk 0:00:11]} 42. Kd6 {[%clk 0:00:15]}  Be5+ {[%clk 0:00:10]} 43. Kd7 {[%clk 0:00:14]}  Rb7+ {[%clk 0:00:10]} 44. Kc8 {[%clk 0:00:13]}  Rb8+ {[%clk 0:00:10]} 45. Kd7 {[%clk 0:00:12]}  Rb7+ {[%clk 0:00:11]} 46. Kd8 {[%clk 0:00:11]}  Rb8+ {[%clk 0:00:11]} 47. Rc8 {[%clk 0:00:11]}  Bf6+ {[%clk 0:00:10]} 48. Kd7 {[%clk 0:00:11]}  Rb7+ {[%clk 0:00:11]} 49. Kc6 {[%clk 0:00:11]}  Re7 {[%clk 0:00:10]} 50. Bc5 {[%clk 0:00:10]}  Re6+ {[%clk 0:00:10]} 51. Kd5 {[%clk 0:00:10]}  Be7 {[%clk 0:00:09]} 52. Rc7 {[%clk 0:00:10]}  Re1 {[%clk 0:00:07]} 53. Kc6 {[%clk 0:00:09]}  Kf6 {[%clk 0:00:04]} 54. Bd4+ {[%clk 0:00:05]}  Kf7 {[%clk 0:00:04]} 55. Bc5 {[%clk 0:00:05]}  Kf6 {[%clk 0:00:04]} 56. Rxe7 {[%clk 0:00:06]}  Rxe7 {[%clk 0:00:04]} 57. Bxe7+ {[%clk 0:00:07]}  Kxe7 {[%clk 0:00:04]} 58. Kd5 {[%clk 0:00:08]}  Kd7 {[%clk 0:00:05]} 59. Ke5 {[%clk 0:00:08]}  Ke7 {[%clk 0:00:05]} 60. g4 {[%clk 0:00:09]}  Kd7 {[%clk 0:00:04]} 61. h5 {[%clk 0:00:07]}  gxh5 {[%clk 0:00:04]} 62. gxh5 {[%clk 0:00:08]}  Ke7 {[%clk 0:00:04]} 63. Kf5 {[%clk 0:00:08]}  Kf7 {[%clk 0:00:05]} 64. f3 {[%clk 0:00:09]}  Ke7 {[%clk 0:00:04]} 65. Kg6 {[%clk 0:00:09]}  Kf8 {[%clk 0:00:04]} 66. f4 {[%clk 0:00:09]}  Kg8 {[%clk 0:00:04]} 67. f5 {[%clk 0:00:09]}  Kf8 {[%clk 0:00:05]} 68. f6 {[%clk 0:00:08]}  gxf6 {[%clk 0:00:05]} 69. Kxf6 {[%clk 0:00:08]}  Kg8 {[%clk 0:00:05]} 70. Kg6 {[%clk 0:00:09]}  Kh8 {[%clk 0:00:06]} 71. Kxh6 {[%clk 0:00:10]}  Kg8 {[%clk 0:00:07]} 72. Kg6 {[%clk 0:00:11]}  Kh8 {[%clk 0:00:07]} 73. h6 {[%clk 0:00:12]}  Kg8 {[%clk 0:00:08]} 74. h7+ {[%clk 0:00:13]}  Kh8 {[%clk 0:00:09]} 75. Kh6 {[%clk 0:00:14]} 1/2-1/2


[Site "https://www.chess.com"]